bitfinex/quotes_ETHUSD_20251120
["timestamp","ask_amount","ask_price","bid_price","bid_amount"]
[1763635162500,10.48030951,3011.2,3010.1,0.71349669]
[1763635162867,10.48030951,3011.2,3010.1,4.03564041]
[1763635163068,10.48030951,3011.2,3010.2,0.40580218]
[1763635163264,7.15937434,3011.2,3010.2,0.40580218]
[1763635164204,3.43300259,3011.2,3010.3,7.1349616]
[1763635164416,0.112,3011.2,3010.4,0.02237439]
[1763635164633,0.112,3011.2,3010.5,0.71349599]
[1763635164789,3.432946,3011.2,3010.5,0.71349599]
[1763635165902,6.753892,3011.2,3010.5,0.71349599]
[1763635166101,3.432946,3011.2,3010.5,0.71349599]
[1763635166327,3.43296569,3011.2,3010.5,4.03520285]
[1763635166492,3.43296569,3011.2,3010.6,0.73569447]
[1763635166698,6.75393138,3011.2,3010.6,0.73569447]
[1763635166924,3.43296569,3011.2,3010.6,0.73569447]
[1763635167082,6.75393138,3011.2,3010.6,0.73569447]
[1763635170632,3.98607859,3012.1,3010.6,0.73569447]
[1763635170802,0.405504,3011.8,3010.6,3.32158972]
[1763635170983,0.71353949,3011.8,3010.6,3.32158972]
[1763635171408,0.71353949,3011.8,3010.5,0.71349599]
[1763635171690,0.405504,3011.6,3010.5,0.71349599]
[1763635171890,0.002,3011.2,3010.5,0.71349599]
[1763635173345,0.002,3011.2,3010.6,0.90699264]
[1763635173632,0.002,3011.2,3010.5,1.62048863]
[1763635173808,0.002,3011.2,3010.6,0.49422682]
[1763635174628,6.64387034,3011.2,3010.6,0.49422682]
[1763635174932,0.4210581,3011.1,3010.2,0.40580218]
[1763635175097,0.9065581,3011.1,3010.2,0.112]
[1763635175299,0.3090581,3011.0,3010.2,0.112]
[1763635175699,0.3090581,3011.0,3010.2,1.01899264]
[1763635175951,0.3090581,3011.0,3010.2,0.112]
[1763635176157,0.3082581,3011.0,3010.1,0.90699264]
[1763635176324,0.4855,3011.0,3010.2,0.42291917]
[1763635176527,0.1928,3010.9,3010.2,0.42291917]
[1763635176718,0.1928,3010.9,3010.0,1.00140457]
[1763635176719,6.64275274,3010.8,3010.0,1.00140457]
[1763635176925,0.112,3010.7,3010.0,1.00140457]
[1763635177153,0.112,3010.7,3009.9,0.89040457]
[1763635177358,0.112,3010.7,3010.0,0.88940457]
[1763635177831,0.112,3010.7,3009.9,1.42992397]
[1763635178138,0.112,3010.7,3009.9,2.33691661]
[1763635178338,0.4945,3010.6,3009.9,0.001]
[1763635178865,0.4945,3010.6,3010.0,4.77528709]
[1763635178866,6.6434147,3010.5,3010.0,4.77528709]
[1763635180127,9.96512205,3010.5,3009.9,0.001]
[1763635180330,6.6434147,3010.5,3009.9,4.77628709]
[1763635180562,0.112,3010.4,3010.1,4.77528709]
[1763635180869,3.4338366,3010.4,3010.1,4.77528709]
[1763635181034,0.112,3010.7,3010.3,4.77528709]
[1763635183165,6.64319404,3010.6,3010.1,4.77528709]
[1763635184330,0.002,3011.2,3010.5,9.55057418]
[1763635184529,0.002,3011.2,3010.2,0.90699264]
[1763635184530,3.32294824,3011.2,3010.7,4.77528709]
[1763635184731,0.112,3011.1,3010.7,4.77528709]
[1763635185258,3.32115576,3011.0,3010.7,4.77528709]
[1763635188027,6.64231152,3011.0,3010.7,4.77528709]
[1763635188263,0.31089419,3010.9,3010.5,4.77528709]
[1763635188565,0.31089419,3010.8,3010.5,4.77528709]
[1763635188767,0.31089419,3010.9,3010.5,0.56646917]
[1763635188972,0.31089419,3010.8,3010.3,4.21132789]
[1763635189270,0.31089419,3010.9,3010.3,4.21132789]
[1763635189447,0.31089419,3010.8,3010.3,4.21132789]
[1763635189647,3.32115576,3011.0,3010.3,4.21132789]
[1763635189648,3.63221151,3010.9,3010.3,4.21132789]
[1763635189944,0.31089419,3010.8,3010.3,4.88916078]
[1763635190341,0.31089419,3010.8,3010.4,0.88940457]
[1763635191184,0.31089419,3010.8,3010.3,4.88916078]
[1763635191342,3.32127036,3010.9,3010.4,0.88940457]
[1763635191543,0.31089419,3010.8,3010.4,0.88940457]
[1763635191776,0.31089419,3010.8,3010.4,1.13682758]
[1763635192269,0.31089419,3010.8,3010.4,0.24742301]
[1763635192673,0.31089419,3010.8,3010.4,1.13682758]
[1763635193582,3.63228048,3010.8,3010.4,0.88940457]
[1763635193759,0.31089419,3010.7,3010.4,0.88940457]
[1763635194245,0.31089419,3010.7,3010.3,5.11825936]
[1763635196076,3.63248854,3010.7,3010.3,0.88940457]
[1763635196269,3.32159435,3010.7,3010.3,0.88940457]
[1763635196887,3.32159435,3010.7,3010.1,0.001]
[1763635196888,0.4889,3010.4,3010.1,0.001]
[1763635197179,0.4889,3010.2,3010.1,0.001]
[1763635197346,0.79995981,3010.2,3010.1,0.001]
[1763635197547,1.29445981,3010.2,3010.1,0.001]
[1763635197963,4.61649821,3010.2,3010.1,0.001]
[1763635198171,5.42154148,3010.2,3010.1,0.001]
[1763635199155,5.82704548,3010.2,3010.1,0.001]
[1763635200251,5.82624548,3010.2,3010.1,0.001]
[1763635201290,6.73323812,3010.2,3010.1,0.001]
[1763635201679,6.84523812,3010.2,3010.1,0.001]
[1763635201881,6.73323812,3010.2,3010.1,0.001]
[1763635202394,4.12119821,3010.2,3010.1,0.001]
[1763635202591,0.31105981,3010.2,3010.1,0.001]
[1763635202776,0.112,3010.2,3010.1,0.001]
[1763635202983,4.72849821,3010.2,3010.1,0.001]
[1763635203958,4.61649821,3010.2,3010.1,0.001]
[1763635204164,4.72849821,3010.2,3010.1,0.001]
[1763635204566,4.7276186,3010.2,3010.1,0.001]
[1763635204768,4.2331186,3010.2,3010.1,0.001]
[1763635205094,3.7442186,3010.2,3010.1,0.001]
[1763635206782,3.7442186,3010.2,3009.4,6.63684302]
[1763635206982,0.3101802,3010.1,3009.5,0.75438357]
[1763635207771,0.3101802,3010.1,3009.6,0.02239949]
[1763635207999,0.3101802,3010.3,3009.5,0.75438357]
[1763635208202,0.112,3010.3,3009.6,6.64540138]
[1763635208403,0.4221802,3010.3,3009.6,6.64540138]
[1763635208614,0.4221802,3010.3,3009.7,0.7399785]
[1763635208812,0.4221802,3010.3,3009.9,4.77558249]
[1763635209227,0.4861,3010.2,3009.7,0.7399785]
[1763635209393,0.3101802,3010.2,3009.7,0.7399785]
[1763635209753,0.4221802,3010.3,3009.8,4.77558249]
[1763635210005,0.4221802,3010.3,3009.8,5.65940866]
[1763635210224,0.3101802,3010.3,3010.1,4.77558249]
[1763635210370,0.3101802,3010.7,3010.1,4.77558249]
[1763635210575,0.112,3010.7,3010.5,4.77558249]
[1763635211005,0.4221802,3010.7,3010.5,4.77558249]
[1763635211199,0.9082802,3010.7,3010.2,4.77558249]
[1763635211406,0.9082802,3010.7,3009.8,0.88382617]
[1763635211407,1.2753802,3010.6,3010.0,4.77558249]
[1763635211730,0.112,3010.7,3010.1,0.47755825]
[1763635211902,0.31010798,3010.7,3010.3,4.77558249]
[1763635212083,0.112,3010.6,3010.3,4.77558249]
[1763635212575,0.42210798,3010.6,3010.3,4.77558249]
[1763635212988,3.74373036,3010.6,3010.3,4.77558249]
[1763635213204,0.112,3010.6,3010.3,4.77558249]
[1763635213378,0.42211746,3010.6,3010.4,0.47755825]
[1763635213778,0.112,3010.6,3010.4,0.47755825]
[1763635214179,0.112,3010.6,3010.1,5.25314074]
[1763635214180,3.74376012,3010.6,3010.1,5.25314074]
[1763635214501,3.91974266,3010.6,3010.1,5.25314074]
[1763635214702,6.75528532,3010.6,3010.1,4.77558249]
[1763635214879,0.4861,3010.5,3009.7,1.79639721]
[1763635215206,0.112,3010.4,3009.9,4.77558249]
[1763635215700,0.5981,3010.4,3009.9,4.77558249]
[1763635216007,0.4791,3010.0,3009.4,0.001]
[1763635216211,0.112,3009.9,3009.6,4.77558249]
[1763635216415,6.64495978,3009.8,3009.4,0.001]
[1763635216712,0.31007579,3009.7,3009.5,4.77558249]
[1763635216883,0.31007579,3009.7,3009.4,0.001]
[1763635216884,0.112,3009.7,3009.4,0.001]
[1763635217085,0.112,3009.7,3009.5,0.33240267]
[1763635217501,0.31006413,3010.0,3009.5,0.33240267]
[1763635217704,0.112,3009.9,3009.4,0.001]
[1763635218319,0.112,3009.9,3009.5,3.32281109]
[1763635218810,0.112,3009.9,3009.5,6.64562218]
[1763635220631,0.112,3009.9,3009.4,0.001]
[1763635220930,0.112,3009.9,3009.4,0.93039664]
[1763635221432,0.112,3009.9,3009.5,0.75764605]
[1763635221800,0.112,3009.9,3009.4,0.001]
[1763635221801,0.5981,3009.9,3009.4,0.001]
[1763635222234,3.92047135,3009.9,3009.4,0.001]
[1763635222730,3.92048714,3009.9,3009.4,0.001]
[1763635222930,0.4861,3009.8,3009.4,0.001]
[1763635223242,0.4861,3009.8,3009.4,0.90799264]
[1763635223399,3.43437239,3009.9,3009.4,0.001]
[1763635223599,4.11004339,3009.9,3009.4,0.001]
[1763635223931,0.4861,3009.8,3009.4,0.90799264]
[1763635224244,0.4853,3009.8,3009.4,0.90799264]
[1763635224448,0.4791,3009.5,3009.4,0.001]
[1763635224625,0.5911,3009.5,3009.4,0.001]
[1763635224994,3.91391109,3009.5,3009.4,0.001]
[1763635225196,0.5911,3009.5,3009.4,0.001]
[1763635225407,0.90139832,3009.5,3009.4,0.001]
[1763635225627,0.5911,3009.5,3009.4,0.001]
[1763635226333,0.90131927,3009.5,3009.4,0.001]
[1763635226701,0.31021927,3009.5,3009.4,0.001]
[1763635226998,0.112,3009.7,3009.4,0.001]
[1763635227200,0.4791,3009.5,3009.4,0.001]
[1763635227412,0.31021927,3009.5,3009.4,0.001]
[1763635227617,0.112,3009.8,3009.4,0.001]
[1763635228719,0.112,3009.8,3009.4,6.64684302]
[1763635229024,0.112,3009.8,3009.5,0.66692488]
[1763635229506,0.112,3009.9,3009.4,6.64684302]
[1763635229705,0.31021927,3010.0,3009.5,0.02240326]
[1763635230016,0.42221927,3010.1,3009.5,0.91180783]
[1763635230218,0.112,3010.1,3009.5,0.91180783]
[1763635230511,0.112,3010.1,3009.6,0.75586509]
[1763635230708,0.31021927,3010.3,3009.7,6.64518058]
[1763635230926,0.002,3010.7,3009.8,0.02239397]
[1763635230927,0.31021927,3010.5,3009.8,0.02239397]
[1763635231131,0.112,3010.4,3009.8,0.02239397]
[1763635231336,0.002,3009.9,3009.7,6.64518058]
[1763635231524,0.002,3009.9,3009.8,0.82904502]
[1763635232731,0.002,3009.9,3009.8,4.15152491]
[1763635234449,0.002,3010.7,3009.9,9.398315]
[1763635234630,0.002,3010.7,3010.6,4.51584394]
[1763635234833,0.002,3010.7,3010.6,5.42283658]
[1763635235137,0.002,3010.7,3010.6,5.38408006]
[1763635235315,0.002,3010.7,3010.6,6.57700182]
[1763635236144,0.002,3010.7,3010.6,5.38408006]
[1763635238149,0.002,3010.7,3010.6,6.27707342]
[1763635238329,0.002,3010.7,3010.6,5.38408006]
[1763635239941,0.002,3010.7,3010.6,6.27707342]
[1763635240147,0.002,3010.7,3010.6,5.38408006]
[1763635240522,0.002,3010.7,3010.6,6.27707342]
[1763635241578,0.002,3010.7,3010.6,5.38408006]
[1763635242037,0.002,3010.7,3010.6,4.22858966]
[1763635242975,0.495,3010.7,3010.3,0.89299336]
[1763635243152,0.002,3010.7,3010.2,6.6440768]
[1763635243325,0.002,3010.7,3010.3,1.91480915]
[1763635244261,0.002,3010.7,3010.3,8.41186464]
[1763635245044,0.002,3010.7,3010.4,0.02237943]
[1763635245233,0.002,3010.7,3010.5,1.01899264]
[1763635245631,0.002,3010.7,3010.6,0.02237593]
[1763635245841,0.002,3010.7,3010.6,0.79087633]
[1763635246134,0.002,3010.7,3010.6,0.7685004]
[1763635247266,0.002,3010.7,3010.6,4.99709006]
[1763635248159,0.0012,3010.7,3010.6,4.99709006]
[1763635251775,0.0012,3010.7,3010.6,5.01946498]
[1763635252152,0.002,3011.1,3010.7,4.80949664]
[1763635252344,0.002,3011.1,3011.0,7.40404813]
[1763635252544,0.002,3011.1,3011.0,7.51604813]
[1763635253555,0.002,3011.1,3011.0,10.83720389]
[1763635253752,0.002,3011.1,3011.0,4.3401484]
[1763635253959,0.495,3011.1,3011.0,4.2281484]
[1763635254156,0.495,3011.1,3011.0,5.14767059]
[1763635254679,0.9564,3011.1,3011.0,5.14767059]
[1763635254979,0.495,3011.1,3011.0,5.14767059]
[1763635255572,0.002,3011.1,3011.0,5.14767059]
[1763635256881,0.002,3011.1,3011.0,5.17003448]
[1763635258278,0.002,3011.1,3011.0,5.14767059]
[1763635259313,0.002,3011.1,3011.0,6.04066395]
[1763635261260,0.002,3011.1,3011.0,5.14767059]
[1763635263170,0.002,3011.1,3011.0,6.34059235]
[1763635264280,0.002,3011.1,3011.0,5.14767059]
[1763635265571,0.495,3011.1,3011.0,5.14767059]
[1763635265788,0.9564,3011.1,3011.0,5.12420997]
[1763635270391,0.9564,3011.1,3011.0,8.86300997]
[1763635270573,0.9564,3011.1,3011.0,0.90699264]
[1763635270977,0.9564,3011.1,3010.9,3.32122559]
[1763635271284,0.9407,3011.0,3010.9,4.22821823]
[1763635272401,0.9399,3011.0,3010.9,4.22821823]
[1763635273499,0.9399,3011.0,3010.6,1.19466074]
[1763635273500,0.9399,3011.0,3010.7,0.89606157]
[1763635273714,0.4641,3010.8,3010.6,3.32159702]
[1763635273870,0.4641,3010.7,3010.6,3.32159702]
[1763635274067,0.9407,3010.7,3010.6,4.22858966]
[1763635274271,0.9407,3010.7,3010.5,0.001]
[1763635274501,0.9407,3010.6,3010.5,0.90799264]
[1763635274804,0.9407,3010.6,3010.5,3.32270735]
[1763635275006,0.9407,3010.6,3010.5,0.001]
[1763635275891,0.9407,3010.6,3010.5,3.32270735]
[1763635276091,0.4641,3010.6,3010.5,3.98715953]
[1763635276497,0.9407,3010.6,3010.5,3.98715953]
[1763635276694,0.9407,3010.6,3010.5,3.32270735]
[1763635278411,0.9407,3010.6,3010.5,0.001]
[1763635280508,0.1951,3010.8,3010.5,0.001]
[1763635280677,0.4641,3010.6,3010.5,0.001]
[1763635281207,0.9407,3010.6,3010.5,0.001]
[1763635282499,1.49843454,3010.6,3010.5,0.001]
[1763635282815,1.0527,3010.6,3010.5,0.001]
[1763635286685,0.4641,3010.6,3010.5,0.001]
[1763635287090,0.9407,3010.6,3010.5,0.001]
[1763635290628,4.26229702,3010.6,3010.2,0.001]
[1763635290836,0.4693,3010.3,3010.2,0.001]
[1763635291033,0.5813,3010.3,3010.2,0.001]
[1763635291334,1.0718,3010.3,3010.2,0.001]
[1763635295126,4.39372804,3010.3,3010.2,0.001]
[1763635296136,4.39292804,3010.3,3010.2,0.001]
[1763635298240,1.071,3010.3,3010.2,0.001]
[1763635298408,4.39292804,3010.3,3010.2,0.001]
[1763635298741,1.071,3010.3,3010.2,0.001]
[1763635299835,4.39292804,3010.3,3010.2,0.001]
[1763635300745,1.071,3010.3,3010.2,0.001]
[1763635301351,4.39292804,3010.3,3010.2,0.001]
[1763635302751,5.16440343,3010.3,3010.2,0.001]
[1763635302953,5.56990743,3010.3,3010.2,0.001]
[1763635303139,1.381804,3010.2,3009.4,3.7388]
[1763635303356,0.687,3009.5,3009.3,4.77768]
[1763635303522,0.4894,3009.4,3009.3,4.77768]
[1763635303722,0.9763,3009.4,3009.3,4.77768]
[1763635304938,0.9763,3009.4,3009.0,0.90699264]
[1763635305254,0.4894,3009.4,3009.0,1.79344903]
[1763635305550,0.3096,3009.5,3009.0,1.79344903]
[1763635305752,0.7965,3009.5,3009.0,1.79344903]
[1763635306060,0.3096,3009.5,3009.0,1.79344903]
[1763635306265,0.3096,3009.5,3009.3,0.001]
[1763635306428,0.7965,3009.5,3009.3,0.001]
[1763635306625,0.4894,3009.4,3009.3,0.001]
[1763635307221,0.9763,3009.4,3009.3,0.001]
[1763635308956,1.43716655,3009.4,3009.3,0.001]
[1763635309287,4.60950341,3009.4,3009.3,0.001]
[1763635310264,1.2865819,3009.4,3009.3,0.001]
[1763635310469,1.3985819,3009.4,3009.3,0.001]
[1763635311202,0.405504,3009.3,3008.9,0.001]
[1763635311504,0.4894,3009.0,3007.8,3.32466638]
[1763635311672,0.4894,3008.3,3007.8,3.32466638]
[1763635312004,0.3102819,3008.8,3008.2,0.0064]
[1763635312205,0.158,3008.9,3008.2,0.0064]
[1763635312206,0.158,3008.9,3008.2,6.21786311]
[1763635312378,0.4869,3009.3,3008.3,6.6546731]
[1763635312579,0.112,3009.2,3008.8,0.0064]
[1763635313278,0.5989,3009.2,3008.8,0.0064]
[1763635313479,0.5989,3009.2,3008.6,6.21146311]
[1763635313683,0.5989,3009.2,3008.7,0.62114631]
[1763635314205,0.112,3009.2,3008.7,0.62114631]
[1763635314357,0.112,3009.2,3008.8,3.32358415]
[1763635314782,0.42176331,3009.3,3008.8,3.32358415]
[1763635315095,0.90866331,3009.3,3008.8,3.32358415]
[1763635315302,0.30976331,3009.2,3008.8,4.67156419]
[1763635315604,0.4869,3009.2,3008.8,4.67156419]
[1763635317903,0.112,3009.3,3008.8,7.99514834]
[1763635318087,0.112,3009.2,3008.8,4.67156419]
[1763635319382,0.112,3009.2,3008.9,0.86163864]
[1763635320276,0.1112,3009.2,3008.9,0.86163864]
[1763635320478,0.30983909,3009.3,3009.1,0.0064]
[1763635320678,0.30983909,3009.7,3009.2,0.0064]
[1763635321003,0.112,3009.6,3009.2,0.0064]
[1763635321204,0.112,3009.6,3009.2,0.62882631]
[1763635321707,0.4894,3009.3,3008.9,4.18501398]
[1763635322011,0.4894,3009.0,3008.8,0.90699264]
[1763635322376,0.4894,3009.0,3008.9,3.32347369]
[1763635322606,0.5989,3009.2,3008.9,3.32347369]
[1763635322922,3.32270344,3009.6,3009.1,0.0064]
[1763635322923,0.4869,3009.6,3009.1,0.0064]
[1763635323122,0.30999333,3009.9,3009.1,0.67173474]
[1763635323307,0.4869,3009.8,3009.1,0.67173474]
[1763635323642,0.4869,3009.8,3009.1,0.69414426]
[1763635323643,0.112,3009.8,3009.1,0.69414426]
[1763635323843,0.112,3009.8,3009.2,0.0064]
[1763635324131,0.5989,3009.8,3009.1,0.67173474]
[1763635324301,0.30999333,3009.7,3009.2,0.79021905]
[1763635324495,0.30999333,3009.7,3009.3,6.64606386]
[1763635324815,0.5989,3009.8,3009.3,3.32303193]
[1763635325015,0.4894,3009.4,3009.3,3.32303193]
[1763635325229,0.5989,3009.8,3009.3,3.32303193]
[1763635325525,0.5989,3009.8,3009.3,3.98764813]
[1763635325727,0.5989,3009.8,3009.3,7.31068006]
[1763635326340,0.5989,3009.8,3009.3,3.98764813]
[1763635326496,0.002,3009.6,3009.3,3.98764813]
[1763635326906,0.002,3009.6,3009.4,4.77717688]
[1763635327518,0.4889,3009.6,3009.4,4.77717688]
[1763635328631,0.002,3009.6,3009.4,9.30879992]
[1763635328926,0.002,3009.6,3009.5,0.0064]
[1763635330619,0.002,3009.6,3009.5,3.32921109]
[1763635331529,0.002,3009.6,3009.5,3.33561109]
[1763635331702,0.002,3009.6,3009.5,3.32921109]
[1763635331902,0.002,3009.6,3009.5,5.03399381]
[1763635333331,0.002,3009.6,3009.4,5.98596998]
[1763635333532,0.4899,3009.5,3009.3,7.06173905]
[1763635334103,0.4841,3009.6,3009.3,3.7388]
[1763635334104,0.002,3009.6,3009.3,3.7388]
[1763635334317,0.972,3009.4,3009.3,3.7388]
[1763635334920,1.28244463,3009.4,3009.3,3.7388]
[1763635335135,0.4899,3009.4,3009.3,3.7388]
[1763635335837,0.112,3009.4,3009.2,8.10031759]
[1763635336012,0.002,3009.6,3009.3,1.14875265]
[1763635336336,0.4899,3009.4,3009.2,8.10031759]
[1763635336540,0.31029507,3009.5,3009.2,11.42345995]
[1763635336746,0.4841,3009.6,3009.4,4.77717688]
[1763635336935,0.4841,3009.6,3009.4,8.1000877]
[1763635337671,0.002,3009.6,3009.5,4.78357688]
[1763635337807,0.002,3009.6,3009.5,0.0064]
[1763635338808,0.002,3009.6,3009.5,0.00094]
[1763635342151,0.002,3009.6,3009.4,12.56532111]
[1763635343150,0.002,3009.6,3009.5,0.001]
[1763635343360,0.002,3009.6,3009.5,2.26535556]
[1763635344123,0.0012,3009.6,3009.5,2.26535556]
[1763635344659,0.0012,3009.6,3009.5,2.26635556]
[1763635345192,0.0012,3009.6,3009.5,5.58916665]
[1763635346872,0.0012,3009.6,3009.5,10.36497099]
[1763635347028,0.0012,3009.6,3009.5,10.36397099]
[1763635349242,0.0012,3009.6,3009.5,11.25927912]
[1763635350038,0.0012,3009.6,3009.5,11.26027912]
[1763635350268,0.0012,3009.6,3009.5,14.99907912]
[1763635350837,0.0012,3009.6,3009.5,14.99807912]
[1763635351858,0.0012,3009.6,3009.5,14.10277099]
[1763635352705,0.0012,3009.6,3009.5,14.99919847]
[1763635352877,0.0012,3009.6,3009.5,14.10277099]
[1763635356065,0.0012,3009.6,3009.5,14.10377099]
[1763635358389,0.31079258,3010.1,3009.5,24.07220426]
[1763635358576,0.002,3010.3,3009.5,24.07220426]
[1763635358577,0.31079258,3010.2,3010.0,4.77480434]
[1763635358791,0.002,3010.3,3010.2,0.001]
[1763635359286,0.002,3010.3,3010.2,3.3220384]
[1763635359491,0.9157,3010.3,3010.2,3.3220384]
[1763635359696,0.9157,3010.3,3010.1,4.22911696]
[1763635359883,0.4505,3010.2,3010.1,4.22911696]
[1763635361694,0.9137,3010.2,3010.1,4.22911696]
[1763635363573,0.9157,3010.2,3010.1,4.22911696]
[1763635367501,0.9157,3010.2,3010.1,5.55137578]
[1763635368023,0.9157,3010.2,3010.1,2.22925146]
[1763635368179,0.9149,3010.2,3010.1,4.2291414]
[1763635374127,0.002,3010.2,3010.1,4.2291414]
[1763635374354,0.002,3010.2,3010.1,4.2309414]
[1763635374499,0.002,3010.2,3010.1,4.25513011]
[1763635374800,0.002,3010.6,3010.2,0.0036]
[1763635374999,0.002,3010.6,3010.5,4.77660434]
[1763635376537,0.002,3010.6,3010.5,8.09831169]
[1763635380548,0.002,3010.6,3010.5,8.09651169]
[1763635380746,0.002,3010.6,3010.5,9.33916004]
[1763635381629,0.9157,3010.6,3010.5,9.33916004]
[1763635382018,0.4525,3010.6,3010.5,9.33916004]
[1763635383620,0.002,3010.6,3010.5,9.33916004]
[1763635384338,0.002,3010.6,3010.5,9.34096004]
[1763635384507,0.002,3010.6,3010.5,10.24795268]
[1763635384706,0.002,3011.0,3010.6,0.91059264]
[1763635384915,0.002,3011.0,3010.9,5.68359698]
[1763635385927,0.4525,3011.0,3010.9,5.68179698]
[1763635386139,0.9157,3011.0,3010.9,5.68179698]
[1763635386924,0.9157,3011.0,3010.9,9.00306304]
[1763635392147,0.9149,3011.0,3010.9,9.00306304]
[1763635392333,0.4517,3011.0,3010.9,10.44043415]
[1763635392859,0.9191,3011.0,3010.9,10.44043415]
[1763635394052,0.9191,3011.0,3010.9,9.00306304]
[1763635396223,0.9191,3011.0,3010.9,9.00486304]
[1763635396224,0.0012,3011.0,3010.9,9.00486304]
[1763635396424,0.4835,3011.0,3010.9,9.00306304]
[1763635397253,0.4835,3011.0,3010.9,5.68179698]
[1763635397458,0.9509,3011.0,3010.9,9.00306304]
[1763635398167,0.0012,3011.0,3010.9,10.24670594]
[1763635399848,0.4835,3011.0,3010.9,10.24670594]
[1763635400045,0.9509,3011.0,3010.9,10.24670594]
[1763635408746,0.0012,3011.0,3010.9,10.24347135]
[1763635409092,0.0012,3011.0,3010.9,11.14090542]
[1763635409295,0.0012,3011.0,3010.9,10.24527135]
[1763635410756,0.0012,3011.0,3010.9,10.24347135]
[1763635410972,0.957,3011.0,3010.9,8.99982845]
[1763635412282,0.957,3011.0,3010.9,9.89690451]
[1763635412980,0.0012,3011.0,3010.9,9.89690451]
[1763635413550,0.4885,3011.0,3010.9,9.89690451]
[1763635413775,0.957,3011.0,3010.9,9.89690451]
[1763635414049,0.957,3011.0,3010.9,10.52661707]
[1763635414248,0.957,3011.0,3010.9,9.62954101]
[1763635415403,0.4885,3011.0,3010.9,9.62954101]
[1763635415683,0.0012,3011.0,3010.9,9.62954101]
[1763635415983,0.4885,3011.0,3010.9,9.62954101]
[1763635416187,0.4877,3011.0,3010.9,9.62954101]
[1763635416408,1.26752262,3011.0,3010.9,8.99982845]
[1763635416892,0.31172262,3011.0,3010.9,8.99982845]
[1763635417098,0.0004,3011.0,3010.9,8.99982845]
[1763635418806,0.0004,3011.0,3010.9,9.00262845]
[1763635421303,0.0004,3011.0,3010.9,10.19728919]
[1763635421505,0.0004,3011.0,3010.9,11.73949174]
[1763635421707,0.921,3011.0,3010.9,11.73769174]
[1763635421896,0.921,3011.0,3010.9,11.44053218]
[1763635423992,0.921,3011.0,3010.9,12.36153218]
[1763635425531,0.0004,3011.0,3010.9,12.36153218]
[1763635426500,0.0004,3011.0,3010.9,12.66229174]
[1763635426726,0.0004,3011.0,3010.9,12.66049174]
[1763635426936,0.0004,3011.0,3010.9,11.465831]
[1763635430822,0.921,3011.0,3010.9,11.464031]
[1763635431433,0.4702,3011.0,3010.9,11.464031]
[1763635433851,0.921,3011.0,3010.9,11.464031]
[1763635439053,0.4702,3011.0,3010.9,11.464031]
[1763635440160,0.4694,3011.0,3010.9,11.464031]
[1763635441160,0.9202,3011.0,3010.9,11.464031]
[1763635441464,0.4694,3011.0,3010.9,11.464031]
[1763635442890,0.9202,3011.0,3010.9,1.82899264]
[1763635443163,0.9202,3011.0,3010.9,5.12705045]
[1763635443462,0.9202,3011.0,3010.9,9.8986202]
[1763635444166,0.9202,3011.0,3010.9,6.57735414]
[1763635444356,0.9202,3011.0,3010.9,9.8986202]
[1763635444544,0.9202,3011.0,3010.9,11.38702027]
[1763635444738,0.4694,3011.0,3010.9,11.40942852]
[1763635444962,0.002,3011.1,3010.9,14.73069458]
[1763635445161,0.002,3011.1,3011.0,0.89771387]
[1763635445384,0.4528,3011.1,3011.0,0.89771387]
[1763635445570,0.9226,3011.1,3011.0,0.89771387]
[1763635446065,0.9226,3011.1,3010.9,6.13236239]
[1763635446066,0.9226,3011.1,3010.9,10.35133841]
[1763635446281,0.9206,3011.0,3010.9,10.35133841]
[1763635446483,0.9206,3011.0,3010.9,7.03007626]
[1763635446682,1.23202041,3011.0,3010.9,9.00082845]
[1763635447252,1.23202041,3011.0,3010.9,5.67956239]
[1763635447454,1.34402041,3011.0,3010.9,0.001]
[1763635447660,7.98633193,3011.0,3010.6,0.001]
[1763635447881,0.4698,3010.6,3010.3,0.001]
[1763635448081,0.4698,3010.4,3010.3,4.77256975]
[1763635448260,0.78122041,3010.4,3010.3,4.77256975]
[1763635448587,1.27952041,3010.4,3010.3,4.77256975]
[1763635449865,0.1891,3010.7,3010.3,8.09969779]
[1763635450191,0.1891,3010.7,3010.6,4.77156975]
[1763635450592,0.6658,3010.7,3010.6,4.77156975]
[1763635450759,0.9765546,3010.7,3010.6,4.77156975]
[1763635451087,1.4748546,3010.7,3010.6,4.77156975]
[1763635453175,1.1641,3010.7,3010.6,4.77156975]
[1763635454098,1.1641,3010.7,3010.4,4.77156975]
[1763635454302,0.4767,3010.4,3010.3,0.001]
[1763635454711,0.975,3010.4,3010.3,0.001]
[1763635454874,0.975,3010.4,3010.3,4.77256975]
[1763635457119,0.975,3010.4,3010.3,0.001]
[1763635457120,1.72615533,3010.4,3010.3,0.001]
[1763635457320,1.28529311,3010.4,3010.3,0.001]
[1763635460073,1.28529311,3010.4,3010.3,4.77256975]
[1763635460709,0.975,3010.4,3010.3,4.77256975]
[1763635461074,4.29681769,3010.4,3010.3,4.77256975]
[1763635461277,0.975,3010.4,3010.3,0.001]
[1763635461474,1.72591134,3010.4,3010.3,0.001]
[1763635462314,5.04772903,3010.4,3010.3,0.001]
[1763635462697,1.72591134,3010.4,3010.3,0.001]
[1763635463615,1.41588177,3010.4,3010.3,0.001]
[1763635464111,1.41508177,3010.4,3010.3,0.001]
[1763635465220,0.9742,3010.4,3010.3,0.001]
[1763635467195,1.28428962,3010.4,3010.3,0.001]
[1763635467714,0.9742,3010.4,3010.3,0.001]
[1763635468222,1.28433775,3010.4,3010.3,0.001]
[1763635471021,0.31013775,3010.4,3010.3,0.001]
[1763635471220,0.31013775,3010.5,3010.3,0.48462041]
[1763635471407,0.31013775,3010.8,3010.4,4.7742041]
[1763635471716,0.31013775,3010.9,3010.7,4.7742041]
[1763635471917,0.31213775,3010.9,3010.7,4.7742041]
[1763635472119,0.4735,3010.9,3010.7,4.7742041]